fUSD/lending_fUSD_20241029
["ID","MTS","AMOUNT","RATE_DAILY","PERIOD"]
[340968647,1730180377274,500.0,0.00043865,30]
[340968648,1730180377547,500.0,0.00043865,30]
[340968649,1730180377842,500.0,0.00043865,30]
[340968650,1730180378116,500.0,0.00043865,30]
[340968651,1730180378368,500.0,0.00043865,30]
[340968652,1730180378671,500.0,0.00043865,30]
[340968653,1730180378942,500.0,0.00043865,30]
[340968654,1730180379224,500.0,0.00043865,30]
[340968655,1730180379570,500.0,0.00043865,30]
[340968656,1730180379846,500.0,0.00043865,30]
[340968657,1730180380126,500.0,0.00043865,30]
[340968658,1730180380405,500.0,0.00043865,30]
[340968659,1730180380684,500.0,0.00043865,30]
[340968660,1730180381009,500.0,0.00043865,30]
[340968661,1730180381258,500.0,0.00043865,30]
[340968662,1730180381536,500.0,0.00043865,30]
[340968663,1730180381884,500.0,0.00043865,30]
[340968664,1730180382117,500.0,0.00043865,30]
[340968665,1730180382396,150.2025376,0.00043865,30]
[340968666,1730180463542,500.0,0.00043865,30]
[340968667,1730180463888,500.0,0.00043865,30]
[340968668,1730180464093,227.02527397,0.00043865,30]
[340968669,1730180522437,500.0,0.00043865,30]
[340968670,1730180522714,500.0,0.00043865,30]
[340968671,1730180522997,500.0,0.00043865,30]
[340968672,1730180523327,500.0,0.00043865,30]
[340968673,1730180523621,500.0,0.00043865,30]
[340968674,1730180523940,500.0,0.00043865,30]
[340968675,1730180524379,211.0544417,0.00043865,30]
[340968676,1730180615939,500.0,0.00043865,30]
[340968677,1730180616281,500.0,0.00043865,30]
[340968678,1730180616553,500.0,0.00043865,30]
[340968679,1730180616976,500.0,0.00043865,30]
[340968680,1730180617304,500.0,0.00043865,30]
[340968681,1730180617620,500.0,0.00043865,30]
[340968682,1730180617901,500.0,0.00043865,30]
[340968683,1730180618207,500.0,0.00043865,30]
[340968684,1730180618508,500.0,0.00043865,30]
[340968685,1730180619143,500.0,0.00043865,30]
[340968686,1730180619436,500.0,0.00043865,30]
[340968687,1730180620184,305.13652,0.00043865,30]
[340968689,1730180661546,416.09642798,0.00043865,30]
[340968690,1730180662232,219.8153313,0.00043865,30]
[340968691,1730180664308,628.46824072,0.00043865,30]
[340968693,1730180718197,189.81,0.00013252,2]
[340968694,1730180737818,150.0,0.00043865,30]
[340968703,1730180936494,500.0,0.00043865,30]
[340968719,1730180986203,658.96,0.00014294,2]
[340968732,1730181031475,-156.29,0.00015342,2]
[340968733,1730181031485,-157.68,0.00015342,2]
[340968734,1730181031495,-6164.0,0.00015525,2]
[340968735,1730181031504,-150.0,0.00015635,2]
[340968736,1730181031513,-150.0,0.00015863,2]
[340968737,1730181031523,-275.1115414,0.000159,2]
[340968738,1730181031539,-385.0945,0.000159,2]
[340968739,1730181031548,-473.0049,0.000159,2]
[340968740,1730181031557,-1339.15337817,0.000159,2]
[340968741,1730181031566,-193.90012962,0.000159,2]
[340968742,1730181031575,-283.16073902,0.000159,2]
[340968743,1730181031584,-1982.0,0.0001599,2]
[340968744,1730181031593,-451.0,0.0001599,2]
[340968745,1730181031602,-561.0,0.0001599,2]
[340968746,1730181031611,-1248.0,0.0001599,2]
[340968747,1730181031620,-150.0,0.0001599,2]
[340968748,1730181031629,-557.0,0.0001599,2]
[340968749,1730181031638,-1914.0,0.0001599,2]
[340968750,1730181031647,-3367.0,0.0001599,2]
[340968751,1730181031656,-1253.0,0.0001599,2]
[340968752,1730181031665,-2205.0,0.0001599,2]
[340968753,1730181031674,-811.0,0.0001599,2]
[340968754,1730181031683,-807.0,0.0001599,2]
[340968755,1730181031692,-9666.7751754,0.0001599,3]
[340968756,1730181031701,-5903.0,0.0001599,2]
[340968757,1730181031710,-262.864726,0.0001599,2]
[340968758,1730181031722,-31.714274,0.0001599,2]
[340968759,1730181031731,-155.421,0.0001599,2]
[340968760,1730181031741,-1154.0,0.0001599,2]
[340968761,1730181031751,-6667.38422783,0.0001599,2]
[340968762,1730181031763,-6903.61577217,0.0001599,2]
[340968763,1730181031772,-154.0,0.0001599,2]
[340968764,1730181031787,-2076.93376251,0.00015999,2]
[340968765,1730181031796,-2076.93376251,0.00015999,2]
[340968766,1730181031806,-2076.93376251,0.00015999,2]
[340968767,1730181031815,-2076.93376251,0.00015999,2]
[340968768,1730181031824,-2076.93376251,0.00015999,2]
[340968770,1730181031833,-2076.93376251,0.00015999,2]
[340968772,1730181031843,-2076.93376251,0.00015999,2]
[340968773,1730181031854,-2076.93376251,0.00015999,2]
[340968774,1730181031864,-2076.93376251,0.00015999,2]
[340968775,1730181031873,-2076.93376251,0.00015999,2]
[340968776,1730181031883,-2076.93376251,0.00015999,2]
[340968777,1730181031892,-2076.93376251,0.00015999,2]
[340968778,1730181031901,-2152.4586266,0.00015999,2]
[340968779,1730181031911,-2152.4586266,0.00015999,2]
[340968780,1730181031920,-2152.4586266,0.00015999,2]
[340968781,1730181031929,-2152.4586266,0.00015999,2]
[340968782,1730181031938,-2152.4586266,0.00015999,2]
[340968783,1730181031948,-2152.4586266,0.00015999,2]
[340968784,1730181031957,-2152.4586266,0.00015999,2]
[340968785,1730181031967,-2152.4586266,0.00015999,2]
[340968786,1730181031976,-1697.43729767,0.00015999,2]
[340968787,1730181031988,-455.02132893,0.00015999,2]
[340968788,1730181031997,-906.19954928,0.00015999,2]
[340968789,1730181032009,-1246.25907732,0.00015999,2]
[340968790,1730181032018,-2152.4586266,0.00015999,2]
[340968791,1730181032029,-214.76264586,0.00015999,2]
[340968792,1730181032048,-2854.48391428,0.00015999,2]
[340968793,1730181032057,-25536.71608572,0.00016,2]
[340968801,1730181037515,-563.535,0.00015863,2]
[340968802,1730181037572,-940.87269061,0.00015863,2]
[340968803,1730181037584,-1218.97939557,0.00015863,2]
[340968804,1730181037594,-1087.0,0.0001599,2]
[340968805,1730181037604,-4490.05429652,0.00016,2]
[340968806,1730181037629,-305.71697873,0.00016,2]
[340968807,1730181037906,-8975.73061863,0.00016,2]
[340968963,1730181039635,-2531.07737952,0.00016,2]
[340968965,1730181039646,-312.3160075,0.00016,2]
[340968977,1730181039751,-262.72000001,0.00016,2]
[340968979,1730181039763,-19009.74865866,0.00016,2]
[340968985,1730181039808,-384.644286,0.00016,2]
[340968987,1730181039819,-465.19479417,0.00016,2]
[340969131,1730181043184,-493.76,0.000159,2]
[340969132,1730181043194,-759.97407752,0.00016,2]
[340969133,1730181043246,-1628.673527,0.00016,2]
[340969134,1730181043259,-2337.72239091,0.00016,2]
[340969137,1730181045458,-7099.0,0.00016,2]
[340969138,1730181045516,-4017.33599371,0.00016,2]
[340969139,1730181045574,-620.53980725,0.00016,2]
[340969140,1730181045587,-376.33,0.00016,2]
[340969141,1730181045598,-564.28235077,0.00016,2]
[340969142,1730181045636,-1504.61649182,0.00016,2]
[340969143,1730181045648,-1215.05552828,0.00016,2]
[340969144,1730181045749,-711.6719425,0.00016,2]
[340969145,1730181045763,-897.58999998,0.00016,2]
[340969146,1730181127755,500.0,0.00043865,30]
[340969147,1730181128145,500.0,0.00043865,30]
[340969148,1730181128300,500.0,0.00043865,30]
[340969149,1730181128604,544.24759803,0.00043865,30]
[340969151,1730181185037,515.90457307,0.00043865,30]
[340969152,1730181286139,500.0,0.00043865,30]
[340969153,1730181286374,500.0,0.00043865,30]
[340969154,1730181286660,535.12878577,0.00043865,30]
[340969155,1730181328278,285.83,0.00012921,2]
[340969156,1730181385425,189.81,0.00012902,2]
[340969157,1730181590053,690.77,0.00014126,2]
[340969158,1730181613297,500.0,0.00043863,30]
[340969159,1730181613578,500.0,0.00043863,30]
[340969160,1730181613881,500.0,0.00043863,30]
[340969161,1730181614192,500.0,0.00043863,30]
[340969162,1730181614466,500.0,0.00043863,30]
[340969163,1730181614809,268.57026063,0.00043863,30]
[340969165,1730181666078,500.0,0.00043863,30]
[340969166,1730181666506,500.0,0.00043863,30]
[340969167,1730181666655,500.0,0.00043863,30]
[340969168,1730181666942,500.0,0.00043863,30]
[340969169,1730181667254,500.0,0.00043863,30]
[340969170,1730181667672,545.00139787,0.00043863,30]
[340969174,1730181798162,500.0,0.00043863,30]
[340969175,1730181798445,500.0,0.00043863,30]
[340969176,1730181798736,500.0,0.00043863,30]
[340969177,1730181799043,411.76886,0.00043863,30]
[340969178,1730181831928,500.0,0.00043863,30]
[340969179,1730181832234,500.0,0.00043863,30]
[340969180,1730181832527,500.0,0.00043863,30]
[340969181,1730181832825,500.0,0.00043863,30]
[340969182,1730181833097,500.0,0.00043863,30]
[340969183,1730181833379,500.0,0.00043863,30]
[340969184,1730181833673,500.0,0.00043863,30]
[340969185,1730181833942,429.965316,0.00043863,30]
[340969186,1730181884177,500.0,0.00043863,30]
[340969187,1730181884460,500.0,0.00043863,30]
[340969188,1730181884735,500.0,0.00043863,30]
[340969189,1730181885004,500.0,0.00043863,30]
[340969190,1730181885286,500.0,0.00043863,30]
[340969191,1730181885573,262.58980963,0.00043863,30]
[340969198,1730182091629,500.0,0.00043863,30]
[340969199,1730182092045,500.0,0.00043863,30]
[340969200,1730182092334,500.0,0.00043863,30]
[340969201,1730182092629,282.05204413,0.00043863,30]
[340969202,1730182110246,498.58,0.00015,2]
[340969203,1730182118377,656.23,0.00013127,2]
[340969204,1730182143249,1707.85,0.00014971,2]
[340969237,1730182213175,-771.71,0.00015013,2]
[340969238,1730182213195,-500.0,0.00015083,2]
[340969239,1730182213215,-524.75,0.00015104,2]
[340969240,1730182213237,-200.0,0.00015126,2]
[340969241,1730182213258,-4935.78,0.00015129,2]
[340969242,1730182213278,-6426.31,0.00015129,2]
[340969243,1730182213298,-846.74,0.0001513,2]
[340969244,1730182213317,-256.44,0.00015135,2]
[340969245,1730182213338,-3192.61,0.00015145,2]
[340969246,1730182213359,-179.32,0.00015145,2]
[340969247,1730182213381,-150.0,0.000153,2]
[340969248,1730182213404,-2032.0,0.000153,2]
[340969249,1730182213426,-156.34,0.00015342,2]
[340969250,1730182213449,-158.85,0.00015342,2]
[340969251,1730182213473,-656.23,0.00015391,2]
[340969252,1730182213495,-511.052,0.0001568,2]
[340969253,1730182213519,-1154.0,0.0001589,2]
[340969254,1730182213541,-208.91623245,0.000159,2]
[340969255,1730182213562,-193.90012961,0.000159,2]
[340969256,1730182213584,-231.78142772,0.000159,2]
[340969257,1730182213606,-188.77382602,0.000159,2]
[340969258,1730182213627,-2021.19522566,0.000159,2]
[340969259,1730182213650,-250.0,0.00015984,2]
[340969260,1730182213670,-150.0,0.0001599,2]
[340969261,1730182213690,-170.124,0.0001599,2]
[340969262,1730182213711,-250.0,0.0001599,2]
[340969263,1730182213733,-282.457,0.0001599,2]
[340969264,1730182213754,-561.0,0.0001599,2]
[340969265,1730182213775,-451.0,0.0001599,2]
[340969266,1730182213795,-1982.0,0.0001599,2]
[340969267,1730182213816,-1248.0,0.0001599,2]
[340969268,1730182213838,-1914.0,0.0001599,2]
[340969269,1730182213860,-557.0,0.0001599,2]
[340969270,1730182213881,-3367.0,0.0001599,2]
[340969271,1730182213902,-429.877,0.0001599,2]
[340969272,1730182213923,-1886.849,0.0001599,2]
[340969273,1730182213943,-811.0,0.0001599,2]
[340969274,1730182213964,-807.0,0.0001599,2]
[340969275,1730182213988,-1087.0,0.0001599,2]
[340969276,1730182214011,-3204.49567104,0.0001599,3]
[340969277,1730182214035,-241.09,0.0001599,3]
[340969278,1730182214057,-723.27,0.0001599,3]
[340969279,1730182214079,-485.81,0.00015991,2]
[340969280,1730182214101,-157.32432894,0.00015999,2]
[340969281,1730182214123,-635.8,0.00015999,2]
[340969282,1730182214146,-187.71559277,0.00016,2]
[340969283,1730182214175,-2260032.77328787,0.00016,2]
[340969284,1730182214219,-168986.34342893,0.00016,2]
[340969285,1730182214271,-601527.35162997,0.00016,2]
[340969286,1730182214307,-350.00000002,0.00016,2]
[340969287,1730182216911,13571.0,0.0001589,2]
[340969288,1730182223252,5903.0,0.0001589,2]
[340969289,1730182228541,155.421,0.0001599,2]
[340969296,1730182231806,-187.89,0.00016004,2]
[340969297,1730182231816,-23900.0,0.00016051,2]
[340969298,1730182231825,-166.56,0.00016067,2]
[340969299,1730182231835,-6251.0,0.00016068,2]
[340969300,1730182231845,-923.00798755,0.00016116,2]
[340969301,1730182231860,-641.62211379,0.00016116,2]
[340969302,1730182231871,-10.84989866,0.00016116,2]
[340969303,1730182231880,-404.31,0.00016146,2]
[340969304,1730182231890,-500.0,0.00016218,2]
[340969305,1730182231900,-1226.99,0.00016229,2]
[340969306,1730182231909,-534.85,0.00016258,2]
[340969307,1730182231918,-150.0,0.0001627,2]
[340969308,1730182231928,-250.0,0.00016276,2]
[340969309,1730182231937,-1000.0,0.00016305,2]
[340969310,1730182231946,-1013.24,0.00016305,2]
[340969311,1730182231955,-2907.68662985,0.00016338,2]
[340969312,1730182233340,1087.0,0.0001599,2]
[340969313,1730182237871,-316.62500066,0.00016338,2]
[340969314,1730182237888,-608.17836949,0.00016338,2]
[340969315,1730182237897,-178.12,0.00016433,2]
[340969316,1730182237907,-201.15906976,0.00016438,2]
[340969317,1730182237972,-222.93093024,0.00016438,2]
[340969318,1730182237982,-150.0,0.00016438,2]
[340969319,1730182237991,-339.00830584,0.00016521,2]
[340969320,1730182238003,-1285.76,0.00016521,2]
[340969322,1730182239762,-1068.095,0.00016521,2]
[340969323,1730182240061,-54.78339416,0.00016521,2]
[340969324,1730182240071,-321.13,0.00016575,2]
[340969325,1730182240080,-161.07,0.000166,2]
[340969326,1730182240090,-2178.74495551,0.00016743,2]
[340969342,1730182242739,-741.53504449,0.00016743,2]
[340969344,1730182242748,-2920.28,0.00016747,2]
[340969346,1730182242758,-2345.03215359,0.00016752,2]
[340969358,1730182242861,-575.24784641,0.00016752,2]
[340969360,1730182242870,-2920.28,0.00016756,2]
[340969361,1730182242880,-2920.28,0.00016761,2]
[340969362,1730182242889,-2920.28,0.00016765,2]
[340969363,1730182242898,-2920.28,0.00016769,2]
[340969364,1730182242907,-2920.28,0.00016774,2]
[340969365,1730182242917,-2920.28,0.00016778,2]
[340969367,1730182242926,-2920.28,0.00016783,2]
[340969369,1730182242936,-2920.28,0.00016787,2]
[340969371,1730182242945,-2920.28,0.00016791,2]
[340969372,1730182242954,-2920.28,0.00016796,2]
[340969375,1730182242963,-2920.28,0.000168,2]
[340969377,1730182242973,-2920.28,0.00016805,2]
[340969379,1730182242983,-2920.28,0.00016809,2]
[340969381,1730182242993,-151.0,0.00016813,2]
[340969383,1730182243003,-154.950109,0.00016813,2]
[340969385,1730182243012,-156.778278,0.00016813,2]
[340969387,1730182243023,-154.55526,0.00016813,2]
[340969389,1730182243032,-158.55619,0.00016813,2]
[340969391,1730182243042,-172.898822,0.00016813,2]
[340969393,1730182243053,-151.0,0.00016813,2]
[340969395,1730182243062,-151.0,0.00016813,2]
[340969397,1730182243071,-151.0,0.00016813,2]
[340969399,1730182243080,-156.482602,0.00016813,2]
[340969401,1730182243090,-151.0,0.00016813,2]
[340969403,1730182243099,-156.027307,0.00016813,2]
[340969405,1730182243108,-153.181797,0.00016813,2]
[340969407,1730182243118,-151.0,0.00016813,2]
[340969409,1730182243127,-153.123296,0.00016813,2]
[340969411,1730182243136,-151.0,0.00016813,2]
[340969413,1730182243146,-154.175747,0.00016813,2]
[340969416,1730182243155,-155.466075,0.00016813,2]
[340969419,1730182243164,-151.0,0.00016813,2]
[340969422,1730182243173,-151.0,0.00016813,2]
[340969425,1730182243183,-155.234373,0.00016813,2]
[340969428,1730182243193,-156.801164,0.00016813,2]
[340969431,1730182243203,-151.0,0.00016813,2]
[340969434,1730182243212,-151.0,0.00016813,2]
[340969437,1730182243222,-153.292375,0.00016813,2]
[340969440,1730182243231,-197.076894,0.00016813,2]
[340969443,1730182243240,-151.0,0.00016813,2]
[340969446,1730182243250,-153.500228,0.00016813,2]
[340969449,1730182243259,-151.0,0.00016813,2]
[340969452,1730182243269,-151.0,0.00016813,2]
[340969455,1730182243278,-155.882121,0.00016813,2]
[340969458,1730182243288,-151.0,0.00016813,2]
[340969461,1730182243297,-2920.28,0.00016813,2]
[340969464,1730182243307,-2920.28,0.00016818,2]
[340969467,1730182243316,-153.815877,0.00016818,2]
[340969470,1730182243326,-152.938299,0.00016818,2]
[340969473,1730182243335,-2920.28,0.00016822,2]
[340969476,1730182243344,-2920.28,0.00016827,2]
[340969479,1730182243353,-151.0,0.00016827,2]
[340969482,1730182243362,-151.0,0.00016827,2]
[340969485,1730182243372,-203.834728,0.00016827,2]
[340969488,1730182243381,-151.0,0.00016827,2]
[340969491,1730182243391,-151.0,0.00016827,2]
[340969494,1730182243400,-160.182154,0.00016827,2]
[340969497,1730182243409,-154.796698,0.00016827,2]
[340969500,1730182243419,-151.0,0.00016827,2]
[340969503,1730182243428,-151.0,0.00016827,2]
[340969506,1730182243437,-151.0,0.00016827,2]
[340969509,1730182243447,-165.085958,0.00016827,2]
[340969512,1730182243457,-404.31,0.00016953,2]
[340969515,1730182243466,-321.13,0.0001699,2]
[340969518,1730182243476,-250.0,0.00017,2]
[340969521,1730182243485,-151.0,0.00017123,2]
[340969523,1730182243499,-151.0,0.00017123,2]
[340969525,1730182243508,-151.0,0.00017123,2]
[340969527,1730182243518,-157.474024,0.00017123,2]
[340969529,1730182243527,-151.0,0.00017123,2]
[340969530,1730182243537,-151.0,0.00017123,2]
[340969531,1730182243546,-949.363305,0.00017123,2]
[340969532,1730182243555,-949.363305,0.00017123,2]
[340969534,1730182243566,-152.049908,0.00017123,2]
[340969536,1730182243575,-151.0,0.00017123,2]
[340969538,1730182243585,-151.0,0.00017123,2]
[340969540,1730182243595,-151.0,0.00017123,2]
[340969543,1730182243604,-250.0,0.00017123,2]
[340969546,1730182243614,-482.18,0.0001736,3]
[340969549,1730182243626,-321.13,0.00017404,2]
[340969551,1730182243636,-300.0,0.00017621,2]
[340969553,1730182243645,-656.23,0.00017655,2]
[340969555,1730182243655,-404.31,0.00017761,2]
[340969557,1730182243664,-350.0,0.00017808,2]
[340969559,1730182243674,-321.13,0.00017818,2]
[340969561,1730182243684,-157.95,0.00017899,2]
[340969563,1730182243694,-161.07,0.00017984,2]
[340969565,1730182243703,-20126.31948549,0.00018,2]
[340969567,1730182243713,-321.13,0.00018233,2]
[340969569,1730182243722,-180.0,0.00018261,2]
[340969571,1730182243732,-1000.0,0.00018343,2]
[340969573,1730182243745,-199.60981452,0.00018493,2]
[340969575,1730182243754,-157.95,0.00018533,2]
[340969577,1730182243763,-404.31,0.00018568,2]
[340969578,1730182243772,-245.0,0.000186,2]
[340969580,1730182243781,-1309.0,0.000188,2]
[340969583,1730182243790,-1154.0,0.0001889,2]
[340969585,1730182243799,-13571.0,0.0001889,2]
[340969586,1730182243808,-5903.0,0.0001889,2]
[340969588,1730182243817,-150.0,0.0001899,2]
[340969590,1730182243826,-150.0,0.0001899,2]
[340969592,1730182243835,-150.0,0.0001899,2]
[340969594,1730182243844,-150.0,0.0001899,2]
[340969596,1730182243853,-561.0,0.0001899,2]
[340969598,1730182243862,-417.759,0.0001899,2]
[340969600,1730182243871,-281.691,0.0001899,2]
[340969602,1730182243880,-318.772,0.0001899,2]
[340969604,1730182243890,-1914.0,0.0001899,2]
[340969606,1730182243899,-557.0,0.0001899,2]
[340969608,1730182243907,-3367.0,0.0001899,2]
[340969610,1730182243917,-811.0,0.0001899,2]
[340969613,1730182243927,-696.187,0.0001899,2]
[340969614,1730182243936,-150.0,0.0001899,2]
[340969616,1730182243945,-1087.0,0.0001899,2]
[340969618,1730182243954,-300.0,0.00018991,2]
[340969620,1730182243963,-300.0,0.00019,2]
[340969622,1730182243973,-157.95,0.00019166,2]
[340969624,1730182243982,-180.01,0.00019178,2]
[340969626,1730182243993,-200.0,0.00019178,2]
[340969629,1730182244003,-161.07,0.00019367,2]
[340969631,1730182244013,-404.31,0.00019375,2]
[340969633,1730182244022,-157.95,0.00019799,2]
[340969635,1730182244032,-656.23,0.00019919,2]
[340969637,1730182244042,-500.0,0.00019973,2]
[340969639,1730182244052,-500.0,0.00019973,2]
[340969640,1730182244061,-500.0,0.00019973,2]
[340969643,1730182244070,-500.0,0.00019973,2]
[340969644,1730182244079,-1560.23879648,0.00019999,2]
[340969646,1730182244089,-1560.23879648,0.00019999,2]
[340969648,1730182244099,-1560.23879648,0.00019999,2]
[340969650,1730182244108,-1560.23879648,0.00019999,2]
[340969652,1730182244118,-1560.23879648,0.00019999,2]
[340969654,1730182244127,-1560.23879648,0.00019999,2]
[340969656,1730182244137,-1560.23879648,0.00019999,2]
[340969658,1730182244147,-1560.23879648,0.00019999,2]
[340969660,1730182244158,-1560.23879648,0.00019999,2]
[340969662,1730182244168,-1560.23879648,0.00019999,2]
[340969664,1730182244178,-1560.23879648,0.00019999,2]
[340969666,1730182244187,-1560.23879648,0.00019999,2]
[340969668,1730182244197,-1560.23879648,0.00019999,2]
[340969670,1730182244206,-1560.23879648,0.00019999,2]
[340969672,1730182244215,-1560.23879648,0.00019999,2]
[340969674,1730182244225,-1560.23879648,0.00019999,2]
[340969676,1730182244234,-1061.61,0.0002,2]
[340969678,1730182244244,-772.39680958,0.0002,2]
[340969680,1730182244254,-7979.25175147,0.0002,2]
[340969682,1730182244264,-118483.62409605,0.0002,2]
[340969684,1730182244275,-150306.49720688,0.0002,2]
[340969686,1730182244285,-39795.0,0.0002,2]
[340969688,1730182244294,-295.94860319,0.0002,2]
[340969690,1730182244304,-2971.45516741,0.0002,2]
[340969692,1730182244313,-151.0,0.0002,2]
[340969694,1730182244322,-151.0,0.0002,2]
[340969696,1730182244332,-151.0,0.0002,2]
[340969698,1730182244341,-151.0,0.0002,2]
[340969700,1730182244350,-151.0,0.0002,2]
[340969702,1730182244360,-155.048603,0.0002,2]
[340969704,1730182244370,-151.0,0.0002,2]
[340969706,1730182244380,-151.0,0.0002,2]
[340969708,1730182244390,-151.0,0.0002,2]
[340969710,1730182244400,-151.0,0.0002,2]
[340969712,1730182244409,-151.0,0.0002,2]
[340969714,1730182244420,-151.0,0.0002,2]
[340969716,1730182244430,-151.0,0.0002,2]
[340969719,1730182244442,-238.068554,0.0002,2]
[340969721,1730182244452,-151.0,0.0002,2]
[340969723,1730182244462,-151.0,0.0002,2]
[340969725,1730182244472,-159.557761,0.0002,2]
[340969727,1730182244483,-255.256223,0.0002,2]
[340969729,1730182244494,-159.477079,0.0002,2]
[340969731,1730182244503,-151.0,0.0002,2]
[340969733,1730182244513,-151.0,0.0002,2]
[340969735,1730182244522,-277.355367,0.0002,2]
[340969737,1730182244533,-151.0,0.0002,2]
[340969739,1730182244543,-301.002283,0.0002,2]
[340969740,1730182244552,-151.0,0.0002,2]
[340969742,1730182244561,-151.0,0.0002,2]
[340969744,1730182244571,-151.0,0.0002,2]
[340969746,1730182244580,-151.0,0.0002,2]
[340969748,1730182244590,-151.0,0.0002,2]
[340969750,1730182244599,-151.0,0.0002,2]
[340969752,1730182244608,-151.0,0.0002,2]
[340969754,1730182244618,-151.0,0.0002,2]
[340969756,1730182244627,-185.363195,0.0002,2]
[340969758,1730182244636,-156.081928,0.0002,2]
[340969760,1730182244645,-156.564864,0.0002,2]
[340969762,1730182244655,-151.0,0.0002,2]
[340969777,1730182244790,-151.0,0.0002,2]
[340969779,1730182244800,-151.0,0.0002,2]
[340969781,1730182244810,-151.0,0.0002,2]
[340969783,1730182244820,-151.0,0.0002,2]
[340969785,1730182244830,-151.0,0.0002,2]
[340969787,1730182244841,-151.0,0.0002,2]
[340969789,1730182244851,-151.0,0.0002,2]
[340969791,1730182244861,-217.743622,0.0002,2]
[340969793,1730182244871,-949.363305,0.0002,2]
[340969795,1730182244880,-949.363305,0.0002,2]
[340969797,1730182244890,-949.363305,0.0002,2]
[340969799,1730182244901,-949.363305,0.0002,2]
[340969801,1730182244911,-152.94976848,0.0002,2]
[340969803,1730182244920,-157.255395,0.0002,2]
[340969805,1730182244930,-151.0,0.0002,2]
[340969808,1730182244939,-151.0,0.0002,2]
[340969810,1730182244949,-188.981977,0.0002,2]
[340969812,1730182244959,-1000.0,0.0002,2]
[340969814,1730182244969,-1000.0,0.00020381,2]
[340969816,1730182244979,-157.95,0.00020432,2]
[340969818,1730182244988,-175.74,0.00020548,2]
[340969820,1730182244998,-161.07,0.00020751,2]
[340969822,1730182245008,-1135.53807326,0.00021,2]
[340969824,1730182245019,-187.36779781,0.00021,2]
[340969826,1730182245029,-2255.14841933,0.00021,4]
[340969828,1730182245039,-350.0,0.00021,2]
[340969830,1730182245048,-157.95,0.00021065,2]
[340969832,1730182245058,-1000.0,0.00021342,2]
[340969834,1730182245068,-493.85331221,0.00021342,2]
[340969836,1730182245078,-1000.0,0.00021342,2]
[340969838,1730182245088,-1000.0,0.00021342,2]
[340969840,1730182245098,-4466.93512948,0.0002152,2]
[340969842,1730182245109,-157.95,0.00021698,2]
[340969844,1730182245119,-1154.0,0.0002189,2]
[340969846,1730182245128,-13571.0,0.0002189,2]
[340969848,1730182245138,-5903.0,0.0002189,2]
[340969850,1730182245148,-168.43,0.00021918,2]
[340969852,1730182245158,-196.63,0.00021918,2]
[340969854,1730182245167,-500.0,0.00021973,2]
[340969856,1730182245178,-150.0,0.0002199,2]
[340969858,1730182245188,-150.0,0.0002199,2]
[340969859,1730182245198,-1914.0,0.0002199,2]
[340969861,1730182245208,-1699.887,0.0002199,2]
[340969863,1730182245218,-811.0,0.0002199,2]